{"text_format":"1","workbook":"xlsx","n_sheets":2,"sheets":["iFIX-SÜD","iFIX-ONE"],"not_rendered":{"charts":0,"images":4,"macros":1,"external_links":0,"defined_names":2,"comments":0,"pivot_tables":0},"unopened":[],"bounds":{"document_bytes":16777216,"sheet_cells":100000,"rows_first":2000,"rows_last":500,"rows_between":2000,"halvings":0,"cell_chars":16384,"cell_head_chars":4096},"cells_cut":0,"cells_raw":0,"read":"whole","date_system":"1900"}

{"sheet":"iFIX-SÜD","index":0,"n_rows":23,"n_cols":43,"rows_kept":23,"cut":false,"hidden":false,"merged":[[2,42,2,45],[3,42,3,45],[22,36,22,42],[19,1,19,3],[20,1,20,3],[4,7,4,33],[21,36,21,38],[19,36,19,38],[20,36,20,38],[1,36,1,38],[7,4,17,4],[7,36,7,38],[4,36,4,38],[3,36,3,38],[2,36,2,38],[6,36,6,38]]}
[]
[null,null,null,null,null,null,null,{"$f":"COUNTIF(H8:AH18,\"M\")","v":84},null,{"$f":"COUNTIF(G8:AI18,\"I\")","v":90},null,{"$f":"COUNTIF(I8:AK18,\"I\")","v":84},null,{"$f":"COUNTIF(I8:AK18,\"I\")","v":84},null,{"$f":"COUNTIF(I8:AK18,\"I\")","v":84},null,{"$f":"COUNTIF(I8:AK18,\"I\")","v":84},null,{"$f":"COUNTIF(I8:AK18,\"I\")","v":84},null,{"$f":"COUNTIF(I8:AK18,\"I\")","v":84},null,{"$f":"COUNTIF(I8:AK18,\"I\")","v":84},null,{"$f":"COUNTIF(I8:AK18,\"I\")","v":84},null,{"$f":"COUNTIF(I8:AK18,\"I\")","v":84},null,{"$f":"COUNTIF(I8:AK18,\"I\")","v":84},null,{"$f":"COUNTIF(I8:AK18,\"I\")","v":84},null,null,null,null,"Gewählte Daten:",null,null,null,{"$f":"IF(OR(AO3>1684,AO4>1000),\"Achtung!\",\"\")","v":"Achtung!"}]
[null,null,null,null,null,null,null,{"$f":"H2*AO5/1000","v":28.56},null,{"$f":"H2","v":84},null,{"$f":"J2","v":90},null,{"$f":"J2","v":90},null,{"$f":"J2","v":90},null,{"$f":"J2","v":90},null,{"$f":"J2","v":90},null,{"$f":"J2","v":90},null,{"$f":"J2","v":90},null,{"$f":"J2","v":90},null,{"$f":"J2","v":90},null,{"$f":"J2","v":90},null,{"$f":"J2","v":90},null,null,null,null,"Länge PV-Modul",null,null,null,1690,null,{"$f":"IF(AO3>1684,\"Länge PV-Modul geringfügig außerhalb iFIX-Toleranz!\"&CHAR(10)&\"Bitte Sonderfreigabe beachten! (Download im Shop)\",\"\")","v":"Länge PV-Modul geringfügig außerhalb iFIX-Toleranz!\nBitte Sonderfreigabe beachten! (Download im Shop)"}]
[null,null,null,null,null,null,null,null,null,{"$f":"H2*4","v":336},null,{"$f":"J2*4","v":360},null,{"$f":"J2*4","v":360},null,{"$f":"J2*4","v":360},null,{"$f":"J2*4","v":360},null,{"$f":"J2*4","v":360},null,{"$f":"J2*4","v":360},null,{"$f":"J2*4","v":360},null,{"$f":"J2*4","v":360},null,{"$f":"J2*4","v":360},null,{"$f":"J2*4","v":360},null,{"$f":"J2*4","v":360},null,null,null,null,"Breite PV-Modul",null,null,null,996,null,{"$f":"IF(AO4>1000,\"Breite PV-Modul geringfügig außerhalb iFIX-Toleranz!\"&CHAR(10)&\"Bitte Sonderfreigabe beachten! (Download im Shop)\",\"\")","v":""}]
[null,null,null,null,null,"s","<",{"$f":"IF(AO3<>\"\",\"---  Feldlänge: \"&ROUND(COUNTA(H6:AH6)*((IF(AO3>1675,(1680+5),(AO3+10)))/1000)+0.4,2)&\" m  ---\",\"---  Feldlänge: Länge PV-Modul fehlt!  ---\")","v":"---  Feldlänge: 23,99 m  ---"},null,null,null,null,null,null,null,null,null,null,null,null,null,null,null,null,null,null,null,null,null,null,null,null,null,null,">","s","Leistung PV-Modul",null,null,null,340]
[null,null,null,null,"s",null,null,"n",null,"n",null,"n",null,"n",null,"n",null,"n",null,"n",null,"n",null,"n",null,"n",null,"n",null,"n",null,"n",null,"n"]
[null,null,null,null,">",null,null,null,null,null,null,null,null,null,null,null,null,null,null,null,null,null,null,null,null,null,null,null,null,null,null,null,null,null,null,null,"Module je Reihe",null,null,null,{"$f":"COUNTA(H6:AH6)","v":14}]
[null,null,null,null,{"$f":"\"---  Feldbreite: \"&IF(AO21=\"16°\",COUNTA(F8:F18)*1.59+0.1,COUNTA(F8:F18)*1.52+0.1)&\" m  ---\"","v":"---  Feldbreite: 9,22 m  ---"},"n","I","M","I","M","I","M","I","M","I","M","I","M","I","M","I","M","I","M","I","M","I","M","I","M","I","M","I","M","I",null,"Anzahl Reihen",null,null,null,{"$f":"COUNTA(F8:F18)","v":6}]
[null,null,null,null,null,null,null,null,null,null,null,null,null,null,null,null,null,null,null,null,null,null,null,null,null,null,null,null,null,null,null,null,null,null,null,null,null,null,null,null,"Platzbedarf iFIX-Verbund"]
[null,null,null,null,null,"n","I","M","I","M","I","M","I","M","I","M","I","M","I","M","I","M","I","M","I","M","I","M","I","M","I","M","I","M","I",null,"(durch Klick\nausblenden)",null,"PV-Modul",null,"PV-Modul"]
[]
[null,null,null,null,null,"n","I","M","I","M","I","M","I","M","I","M","I","M","I","M","I","M","I","M","I","M","I","M","I","M","I","M","I","M","I"]
[]
[null,null,null,null,null,"n","I","M","I","M","I","M","I","M","I","M","I","M","I","M","I","M","I","M","I","M","I","M","I","M","I","M","I","M","I"]
[]
[null,null,null,null,null,"n","I","M","I","M","I","M","I","M","I","M","I","M","I","M","I","M","I","M","I","M","I","M","I","M","I","M","I","M","I"]
[]
[null,null,null,null,null,"n","I","M","I","M","I","M","I","M","I","M","I","M","I","M","I","M","I","M","I","M","I","M","I","M","I","M","I","M","I"]
[null,null,null,null,"<"]
["Ende","Min-Abstand zum Dachrand: 0,5m",null,null,"s",null,null,null,null,null,null,null,null,null,null,null,null,null,null,null,null,null,null,null,null,null,null,null,null,null,null,null,null,null,null,null,"Höhe PV-Modul (*)",null,null,null,35]
[null,"(Attika nicht berücksichtigt)",null,null,null,null,null,null,null,null,null,null,null,null,null,null,null,null,null,null,null,null,null,null,null,null,null,null,null,null,null,null,null,null,null,null,"Verschattungswinkel",null,null,null,"18°"]
[null,null,null,null,null,null,null,null,null,null,null,null,null,null,null,null,null,null,null,null,null,null,null,null,null,null,null,null,null,null,null,null,null,null,null,null,"iFIX-SÜD Reihenmaß",null,null,null,{"$f":"IF(AO21=\"16°\",1.59,1.52)","v":1.52}]
[null,null,null,null,null,null,null,null,null,null,null,null,null,null,null,null,null,null,null,null,null,null,null,null,null,null,null,null,null,null,null,null,null,null,null,null,"(geometrische Details - siehe Download im Shop)"]

{"sheet":"iFIX-ONE","index":1,"n_rows":20,"n_cols":54,"rows_kept":20,"cut":false,"hidden":false,"merged":[[19,50,19,52],[19,44,19,48],[7,4,17,4],[4,7,4,41],[7,49,7,52],[7,44,7,48],[19,1,25,4],[20,44,20,48],[1,1,2,2],[5,1,6,1],[4,44,4,48],[3,44,3,48],[2,44,2,48],[3,1,3,2],[1,44,1,50],[2,49,2,52],[3,49,3,52],[4,49,4,52],[5,44,6,48],[5,49,6,52],[6,43,18,43]]}
[]
[null,"iFIX-Ost/West",null,null,null,null,null,{"$f":"COUNTIF(H8:AP18,\"M\")*AX6/1000","v":43.2},null,"kWp",null,null,null,null,null,null,null,null,null,null,null,null,null,null,null,null,null,null,null,null,null,null,null,null,null,null,null,null,null,null,null,null,null,null,"Gewählte Daten:"]
[null,null,null,null,null,null,null,{"$f":"COUNTIF(H8:AP18,\"M\")","v":108},null,{"$f":"COUNTIF(H7:AP19,\"I\")","v":126},null,null,null,null,null,null,null,null,null,null,null,null,null,null,null,null,null,null,null,null,null,null,null,null,null,null,null,null,null,null,null,null,null,null,"Länge PV-Modul",null,null,null,null,1754]
[null,null,null,null,null,null,null,{"$f":"(J3*2)-J4","v":180},null,{"$f":"(J3-H3)*4","v":72},null,null,null,null,null,null,null,null,null,null,null,null,null,null,null,null,null,null,null,null,null,null,null,null,null,null,null,null,null,null,null,null,null,null,"Breite PV-Modul",null,null,null,null,1096]
[null,null,null,null,null,"s","<",{"$f":"\"---  Feldlänge: \"&COUNTA(H6:AP6)*1.2&\" m  ---\"","v":"---  Feldlänge: 21,6 m  ---"},null,null,null,null,null,null,null,null,null,null,null,null,null,null,null,null,null,null,null,null,null,null,null,null,null,null,null,null,null,null,null,null,null,null,">","s","Höhe PV-Modul",null,null,null,null,30]
[null,null,null,null,"s",null,null,"n",null,"n",null,"n",null,"n",null,"n",null,"n",null,"n",null,"n",null,"n",null,"n",null,"n",null,"n",null,"n",null,"n",null,"n",null,"n",null,"n",null,"n",null,null,"Leistung PV-Modul",null,null,null,null,400]
[null,null,null,null,">",null,null,"I",null,"I",null,"I",null,"I",null,"I",null,"I",null,"I",null,"I",null,"I",null,"I",null,"I",null,"I",null,"I",null,"I",null,"I",null,"I",null,"I",null,"I",null,{"$f":"IF(COUNTA(F8:F18)>7,\"max. Reihenlänge überschritten -> \"\"Trennung\"\" einfügen!\",\"\")","v":""}]
[null,null,null,null,{"$f":"IF(AX3<>\"\",IF(COUNTA(F8:F18)<3,\"---  Breite: \",\"---  Feldbreite: \")&ROUND(COUNTA(F8:F18)*((AX3+20)/1000)+0.44,2)&\" m  ---\",\"---  Feldbreite: Länge PV-Modul fehlt!  ---\")","v":"---  Feldbreite: 11,08 m  ---"},"n","S","M",null,"M","S","M",null,"M","S","M",null,"M","S","M",null,"M","S","M",null,"M","S","M",null,"M","S","M",null,"M","S","M",null,"M","S","M",null,"M","S",null,"\nAnzahl Reihen\nModule je Reihe\n\n",null,null,null,null,{"$f":"CHAR(10)&COUNTA(H6:AP6)&CHAR(10)&COUNTA(F8:F18)&CHAR(10)&CHAR(10)","v":"\n18\n6\n\n"}]
[null,null,null,null,null,null,null,"I",null,"I",null,"I",null,"I",null,"I",null,"I",null,"I",null,"I",null,"I",null,"I",null,"I",null,"I",null,"I",null,"I",null,"I",null,"I",null,"I",null,"I"]
[null,null,null,null,null,"n","S","M",null,"M","S","M",null,"M","S","M",null,"M","S","M",null,"M","S","M",null,"M","S","M",null,"M","S","M",null,"M","S","M",null,"M","S","M",null,"M","S"]
[null,null,null,null,null,null,null,"I",null,"I",null,"I",null,"I",null,"I",null,"I",null,"I",null,"I",null,"I",null,"I",null,"I",null,"I",null,"I",null,"I",null,"I",null,"I",null,"I",null,"I"]
[null,null,null,null,null,"n","S","M",null,"M","S","M",null,"M","S","M",null,"M","S","M",null,"M","S","M",null,"M","S","M",null,"M","S","M",null,"M","S","M",null,"M","S","M",null,"M","S"]
[null,null,null,null,null,null,null,"I",null,"I",null,"I",null,"I",null,"I",null,"I",null,"I",null,"I",null,"I",null,"I",null,"I",null,"I",null,"I",null,"I",null,"I",null,"I",null,"I",null,"I"]
[null,null,null,null,null,"n","S","M",null,"M","S","M",null,"M","S","M",null,"M","S","M",null,"M","S","M",null,"M","S","M",null,"M","S","M",null,"M","S","M",null,"M","S","M",null,"M","S"]
[null,null,null,null,null,null,null,"I",null,"I",null,"I",null,"I",null,"I",null,"I",null,"I",null,"I",null,"I",null,"I",null,"I",null,"I",null,"I",null,"I",null,"I",null,"I",null,"I",null,"I"]
[null,null,null,null,null,"n","S","M",null,"M","S","M",null,"M","S","M",null,"M","S","M",null,"M","S","M",null,"M","S","M",null,"M","S","M",null,"M","S","M",null,"M","S","M",null,"M","S"]
[null,null,null,null,null,null,null,"I",null,"I",null,"I",null,"I",null,"I",null,"I",null,"I",null,"I",null,"I",null,"I",null,"I",null,"I",null,"I",null,"I",null,"I",null,"I",null,"I",null,"I"]
[null,null,null,null,null,"n","S","M",null,"M","S","M",null,"M","S","M",null,"M","S","M",null,"M","S","M",null,"M","S","M",null,"M","S","M",null,"M","S","M",null,"M","S","M",null,"M","S"]
[null,null,null,null,"<",null,null,"I",null,"I",null,"I",null,"I",null,"I",null,"I",null,"I",null,"I",null,"I",null,"I",null,"I",null,"I",null,"I",null,"I",null,"I",null,"I",null,"I",null,"I"]
["Ende","ACHTUNG: nach max. 7 Modulen in Reihe ist manuell ein Trennungsabstand ein-zufügen (eine Modullänge \"symbolisch\" freilassen, Feldbreite in Meter ist dann nur mehr bedingt korrekt)\n\nDie Anzahl der Reihen nebeneinander ist systemtechnisch nicht beschränkt\n(ev. Wartungsgänge berücksichtigen!)",null,null,null,null,null,null,null,null,null,null,null,null,null,null,null,null,null,null,null,null,null,null,null,null,null,null,null,null,null,null,null,null,null,null,null,null,null,null,null,null,null,null,"iFIX-ONE Reihenmaß",null,null,null,null,null,"2,40 m",null,null,"(unabhängig von Modulmaß)"]